bitfinex/quotes_SOLUSD_20250326
["timestamp","ask_amount","ask_price","bid_price","bid_amount"]
[1743017770161,15.39070434,137.69,137.66,0.14216157]
[1743017770376,15.39070434,137.7,137.68,20.0]
[1743017770558,15.39070434,137.71,137.68,20.0]
[1743017771265,13.9106,137.73,137.68,20.0]
[1743017771266,15.39070434,137.7,137.68,20.0]
[1743017771441,15.39070434,137.72,137.7,7.2621]
[1743017772067,15.39070434,137.72,137.68,27.326]
[1743017772864,22.04070434,137.73,137.69,0.14216157]
[1743017773073,15.42070434,137.73,137.69,18.933972]
[1743017773566,15.42070434,137.73,137.69,26.196272]
[1743017773948,15.39070434,137.72,137.69,18.933972]
[1743017774149,15.39070434,137.7,137.68,0.063]
[1743017774448,15.39070434,137.69,137.68,0.063]
[1743017775466,15.39070434,137.7,137.68,0.063]
[1743017776757,15.39070434,137.72,137.68,0.063]
[1743017776951,15.39070434,137.7,137.68,0.063]
[1743017777149,15.39070434,137.69,137.68,0.063]
[1743017780370,22.65330434,137.69,137.68,0.063]
[1743017781268,89.18472865,137.69,137.68,0.063]
[1743017781489,95.80472865,137.69,137.68,0.063]
[1743017782764,34.24191129,137.69,137.68,0.063]
[1743017782961,4.96860695,137.72,137.68,0.063]
[1743017783171,15.39070434,137.7,137.68,0.063]
[1743017783673,15.39070434,137.69,137.68,0.063]
[1743017784046,22.65330434,137.69,137.68,0.063]
[1743017784250,84.2161217,137.69,137.68,0.063]
[1743017784849,90.8361217,137.69,137.68,0.063]
[1743017785251,29.27330434,137.69,137.68,0.063]
[1743017785867,95.80472865,137.69,137.68,0.063]
[1743017787071,113.96142865,137.69,137.62,0.063]
[1743017787257,15.39070434,137.63,137.62,0.063]
[1743017787466,83.5735217,137.63,137.62,0.063]
[1743017787667,88.54212865,137.63,137.62,0.063]
[1743017788271,34.24511129,137.63,137.62,0.063]
[1743017788477,95.80792865,137.63,137.62,0.063]
[1743017788862,67.03655831,137.63,137.61,0.063]
[1743017789088,48.18215136,137.62,137.54,96.404]
[1743017789258,24.09107568,137.59,137.55,18.933972]
[1743017789456,29.05968263,137.61,137.57,24.09107568]
[1743017790267,29.05968263,137.61,137.57,31.35947568]
[1743017791073,29.05968263,137.61,137.57,7.2684]
[1743017791276,24.09107568,137.6,137.57,7.2684]
[1743017792767,29.05968263,137.61,137.57,7.2684]
[1743017792968,24.09107568,137.6,137.57,7.2684]
[1743017794173,24.09107568,137.6,137.56,7.41146157]
[1743017794372,24.09107568,137.58,137.55,0.14216157]
[1743017795181,24.09107568,137.59,137.55,7.41196157]
[1743017795568,24.09107568,137.61,137.57,24.23323725]
[1743017795753,7.2658,137.63,137.57,24.23323725]
[1743017795754,24.09107568,137.62,137.57,24.23323725]
[1743017795958,24.09107568,137.61,137.58,7.2684]
[1743017796173,24.09107568,137.61,137.57,31.50203725]
[1743017796369,24.09107568,137.61,137.57,7.41096157]
[1743017797382,24.09107568,137.6,137.57,7.41096157]
[1743017798259,6.62,137.63,137.59,0.14216157]
[1743017798462,24.09107568,137.62,137.59,0.14216157]
[1743017799267,4.96860695,137.69,137.64,20.0]
[1743017799469,31.38327568,137.7,137.65,44.09107568]
[1743017799673,24.12107568,137.7,137.65,45.69017568]
[1743017800061,24.12107568,137.7,137.66,43.02504768]
[1743017800062,0.03,137.7,137.66,43.02504768]
[1743017800474,24.12107568,137.7,137.66,18.933972]
[1743017800990,24.12107568,137.7,137.66,43.02504768]
[1743017801484,24.12107568,137.7,137.67,7.2637]
[1743017801868,24.12107568,137.7,137.66,50.28914768]
[1743017802168,24.12107568,137.7,137.66,26.198072]
[1743017802578,24.09107568,137.69,137.66,0.14216157]
[1743017802783,24.09107568,137.68,137.67,20.0]
[1743017802981,24.09107568,137.69,137.67,20.0]
[1743017803296,7.2637,137.67,137.61,1.5693]
[1743017803586,24.09107568,137.64,137.61,1.5693]
[1743017803785,24.09107568,137.65,137.61,1.5693]
[1743017806188,24.09107568,137.64,137.6,6.36026157]
[1743017806385,24.09107568,137.64,137.6,6.2181]
[1743017806771,24.09107568,137.65,137.6,37.57647568]
[1743017807094,24.09107568,137.66,137.61,24.23323725]
[1743017807688,24.09107568,137.66,137.62,7.2663]
[1743017807897,24.09107568,137.66,137.62,31.35737568]
[1743017808091,24.09107568,137.68,137.64,24.23323725]
[1743017808672,24.12107568,137.7,137.66,0.14216157]
[1743017808876,24.09107568,137.68,137.66,20.0]
[1743017810482,24.09107568,137.68,137.66,27.2642]
[1743017810683,24.09107568,137.69,137.66,27.2642]
[1743017811080,24.09107568,137.68,137.64,0.14216157]
[1743017811387,24.09107568,137.65,137.62,7.2662]
[1743017811595,24.09107568,137.64,137.61,0.20516157]
[1743017811791,24.09107568,137.64,137.63,20.0]
[1743017811975,24.09107568,137.64,137.61,7.47186157]
[1743017812691,24.09107568,137.65,137.61,7.47186157]
[1743017812895,30.71107568,137.67,137.63,0.14216157]
[1743017813084,30.71107568,137.67,137.63,24.23323725]
[1743017813486,6.62,137.67,137.63,24.23323725]
[1743017813703,30.71107568,137.67,137.63,0.14216157]
[1743017815299,30.71107568,137.67,137.64,7.2653]
[1743017815996,24.09107568,137.69,137.65,0.14216157]
[1743017816187,30.74107568,137.7,137.65,24.23323725]
[1743017816895,6.65,137.7,137.66,24.09107568]
[1743017817396,0.03,137.7,137.68,7.2632]
[1743017817794,0.03,137.7,137.69,43.02504768]
[1743017818095,0.03,137.7,137.69,18.933972]
[1743017818298,0.03,137.7,137.69,0.14216157]
[1743017818908,0.03,137.7,137.69,20.0]
[1743017819413,0.03,137.7,137.69,27.40476157]
[1743017819711,0.03,137.7,137.69,51.49583725]
[1743017820082,0.03,137.7,137.69,70.28764768]
[1743017820710,0.03,137.7,137.69,0.14216157]
[1743017822703,0.03,137.7,137.69,20.0]
[1743017823411,0.03,137.7,137.69,20.14216157]
[1743017824730,0.03,137.7,137.69,27.40476157]
[1743017825302,0.03,137.7,137.69,51.49583725]
[1743017825703,0.03,137.7,137.69,27.40476157]
[1743017826305,0.03,137.7,137.69,51.49583725]
[1743017827387,0.03,137.7,137.69,70.28764768]
[1743017827921,0.03,137.7,137.69,71.86884768]
[1743017828122,0.03,137.73,137.72,20.28432314]
[1743017828304,0.03,137.73,137.72,51.63649882]
[1743017828992,0.03,137.73,137.72,158.83826539]
[1743017829190,0.03,137.73,137.72,152.88614768]
[1743017832397,0.03,137.73,137.72,70.28614768]
[1743017837024,0.03,137.82,137.77,0.28432314]
[1743017837195,0.03,137.82,137.8,24.09107568]
[1743017837401,0.03,137.82,137.8,31.34787568]
[1743017837801,0.03,137.82,137.81,24.09107568]
[1743017839305,0.03,137.82,137.81,31.34737568]
[1743017840317,0.03,137.82,137.81,31.48953725]
[1743017840511,0.03,137.82,137.81,50.28134768]
[1743017840896,0.03,137.82,137.81,31.48953725]
[1743017841099,0.03,137.82,137.81,24.23323725]
[1743017841819,0.03,137.82,137.81,31.48953725]
[1743017842016,0.03,137.82,137.81,24.23323725]
[1743017842400,0.03,137.82,137.81,31.48953725]
[1743017843206,0.03,137.82,137.81,50.28134768]
[1743017845224,0.03,137.82,137.81,56.73904768]
[1743017845599,0.03,137.82,137.81,20.14216157]
[1743017845803,0.03,137.82,137.81,20.0]
[1743017846017,0.03,137.82,137.79,24.09107568]
[1743017846216,0.03,137.82,137.79,0.14216157]
[1743017846607,24.12107568,137.82,137.78,0.14216157]
[1743017846804,24.12107568,137.82,137.77,30.54877568]
[1743017847001,24.09107568,137.81,137.76,25.60277568]
[1743017847318,24.09107568,137.81,137.76,32.86157568]
[1743017847521,24.09107568,137.8,137.76,1.5117]
[1743017847720,24.09107568,137.79,137.76,0.14216157]
[1743017847902,24.09107568,137.8,137.76,0.14216157]
[1743017848103,24.09107568,137.8,137.76,24.23323725]
[1743017848723,31.34807568,137.8,137.76,0.14216157]
[1743017849222,24.09107568,137.78,137.74,348.50122454]
[1743017849524,24.09107568,137.78,137.75,0.14216157]
[1743017850407,24.09107568,137.76,137.74,0.063]
[1743017850730,24.09107568,137.75,137.74,0.063]
[1743017852102,31.35057568,137.75,137.74,0.063]
[1743017852307,24.09107568,137.75,137.74,0.063]
[1743017852534,24.09107568,137.76,137.74,0.063]
[1743017852839,29.05968263,137.77,137.74,0.063]
[1743017853132,24.09107568,137.75,137.74,0.063]
[1743017854098,8.1855,137.8,137.74,0.063]
[1743017854326,24.09107568,137.79,137.74,43.08804768]
[1743017854539,0.03,137.75,137.74,0.20516157]
[1743017855035,0.03,137.75,137.74,20.063]
[1743017857227,0.03,137.75,137.74,0.063]
[1743017858215,24.12107568,137.75,137.74,0.063]
[1743017858646,31.38057568,137.75,137.74,0.063]
[1743017864244,24.12107568,137.75,137.74,0.063]
[1743017864540,31.38057568,137.75,137.74,0.063]
[1743017866643,7.2895,137.75,137.74,0.063]
[1743017866850,31.38057568,137.75,137.74,0.063]
[1743017868549,24.12107568,137.75,137.74,0.063]
[1743017871152,31.38057568,137.75,137.74,0.063]
[1743017876060,24.12107568,137.75,137.74,0.063]
[1743017876653,31.38057568,137.75,137.74,0.063]
[1743017880943,0.03,137.75,137.74,0.063]
[1743017881150,24.12107568,137.75,137.74,0.063]
[1743017881460,0.03,137.75,137.74,0.063]
[1743017883246,24.12107568,137.75,137.74,0.063]
[1743017883763,106.12107568,137.75,137.74,0.063]
[1743017884156,24.12107568,137.75,137.74,0.063]
[1743017884970,31.38057568,137.75,137.74,0.063]
[1743017894478,53.24057568,137.75,137.74,0.063]
[1743017896870,31.38057568,137.75,137.74,0.063]
[1743017897449,49.52937568,137.75,137.67,8.1391]
[1743017897671,24.09107568,137.69,137.67,8.1391]
[1743017899859,31.35377568,137.69,137.67,8.1391]
[1743017900066,24.09107568,137.69,137.67,8.1391]
[1743017900475,24.09107568,137.69,137.67,15.4027]
[1743017900683,100.1523,137.73,137.67,15.4027]
[1743017900684,82.0,137.73,137.67,15.4027]
[1743017900866,24.09107568,137.7,137.67,15.4027]
[1743017902886,24.09107568,137.69,137.67,8.1391]
[1743017903680,24.09107568,137.69,137.67,15.4028]
[1743017903884,24.09107568,137.7,137.67,15.4028]
[1743017904673,24.09107568,137.7,137.67,8.1391]
[1743017904863,15.39119298,137.7,137.67,8.1391]
[1743017905265,15.39119298,137.69,137.67,8.1391]
[1743017905869,15.39119298,137.68,137.67,8.1391]
[1743017906086,15.39119298,137.68,137.66,0.063]
[1743017906386,15.39119298,137.67,137.66,0.063]
[1743017906689,97.39119298,137.67,137.66,0.063]
[1743017907582,104.65489298,137.67,137.66,0.063]
[1743017908874,113.33320175,137.67,137.66,0.063]
[1743017909481,106.06950175,137.67,137.66,0.063]
[1743017910690,24.06950175,137.68,137.66,0.063]
[1743017911273,24.06950175,137.67,137.66,0.063]
[1743017919295,31.33320175,137.67,137.66,0.063]
[1743017923299,24.06950175,137.67,137.66,0.063]
[1743017923504,24.06950175,137.68,137.66,0.063]
[1743017924384,24.06950175,137.69,137.66,0.063]
[1743017924598,24.06950175,137.69,137.66,1.6335]
[1743017924896,24.06950175,137.68,137.66,1.6335]
[1743017925481,24.06950175,137.69,137.66,1.6335]
[1743017925982,24.06950175,137.7,137.66,1.6335]
[1743017926713,24.06950175,137.7,137.66,8.8976]
[1743017927005,24.06950175,137.71,137.67,0.14216157]
[1743017927213,24.06950175,137.72,137.67,24.21166332]
[1743017927591,24.06950175,137.71,137.67,24.21166332]
[1743017927804,24.06950175,137.71,137.66,39.40060175]
[1743017928111,24.06950175,137.7,137.66,15.3311]
[1743017928283,24.06950175,137.68,137.66,8.067]
[1743017928906,31.33280175,137.68,137.66,6.4965]
[1743017929207,24.06950175,137.68,137.66,6.4965]
[1743017929420,24.06950175,137.68,137.66,13.7606]
[1743017929612,24.06950175,137.72,137.67,24.35382489]
[1743017929920,24.06950175,137.73,137.68,24.06950175]
[1743017930588,24.09950175,137.74,137.69,45.65310175]
[1743017930788,24.09950175,137.74,137.7,7.2621]
[1743017932096,24.06950175,137.73,137.7,7.2621]
[1743017933311,24.06950175,137.73,137.69,28.846]
[1743017936612,31.35960175,137.74,137.69,52.91550175]
[1743017937118,24.06950175,137.73,137.69,28.846]
[1743017937796,24.06950175,137.71,137.69,1.5836]
[1743017937988,24.06950175,137.71,137.69,20.0]
[1743017938310,24.06950175,137.7,137.66,8.0394]
[1743017938491,7.261,137.73,137.66,8.0394]
[1743017938492,24.06950175,137.69,137.66,8.0394]
[1743017938813,24.06950175,137.7,137.66,15.3035]
[1743017940409,24.06950175,137.71,137.66,39.37300175]
[1743017940587,106.06950175,137.73,137.68,24.06950175]
[1743017941007,82.0,137.73,137.7,20.0]
[1743017942016,82.0,137.73,137.71,7.2616]
[1743017942314,24.09950175,137.74,137.71,7.2616]
[1743017942711,24.06950175,137.73,137.7,27.2619]
[1743017942915,24.06950175,137.73,137.7,20.0]
[1743017943416,24.06950175,137.71,137.67,0.14216157]
[1743017944409,24.06950175,137.71,137.67,7.40556157]
[1743017944999,31.33120175,137.71,137.67,7.40556157]
[1743017945208,31.33120175,137.71,137.66,8.0394]
[1743017945209,24.06950175,137.69,137.66,8.0394]
[1743017945512,24.06950175,137.69,137.66,15.3035]
[1743017945810,24.06950175,137.7,137.66,15.3035]
[1743017946121,24.06950175,137.69,137.66,8.0394]
[1743017946494,31.33250175,137.69,137.66,8.0394]
[1743017946694,24.06950175,137.67,137.66,0.063]
[1743017947511,24.06950175,137.68,137.66,0.063]
[1743017948103,82.0,137.7,137.66,31.39670175]
[1743017948297,82.0,137.7,137.67,24.06950175]
[1743017948504,82.0,137.7,137.68,7.2632]
[1743017949412,106.06950175,137.7,137.68,7.2632]
[1743017950122,82.0,137.7,137.67,31.33320175]
[1743017950496,24.06950175,137.73,137.69,0.14216157]
[1743017950693,24.09950175,137.74,137.69,24.21166332]
[1743017951008,31.35960175,137.74,137.69,30.51416332]
[1743017951204,24.09950175,137.74,137.69,30.51416332]
[1743017951817,24.09950175,137.74,137.69,32.16596332]
[1743017952203,24.09950175,137.74,137.7,7.2621]
[1743017952398,0.03,137.74,137.7,31.33160175]
[1743017952619,0.03,137.74,137.71,24.21166332]
[1743017952799,0.03,137.74,137.73,20.0]
[1743017953815,0.03,137.74,137.73,27.2605]
[1743017954324,0.03,137.74,137.73,51.47216332]
[1743017954625,0.03,137.74,137.73,70.26397375]
[1743017954831,0.03,137.74,137.73,46.194472]
[1743017955019,0.03,137.74,137.73,20.0]
[1743017956638,0.03,137.74,137.73,27.2605]
[1743017957127,0.03,137.74,137.73,20.0]
[1743017958032,0.03,137.74,137.73,27.2605]
[1743017960107,0.03,137.74,137.73,70.26397375]
[1743017960624,0.03,137.74,137.73,27.40266157]
[1743017963618,24.09950175,137.74,137.73,20.0]
[1743017964719,31.35960175,137.74,137.72,0.063]
[1743017964917,24.06950175,137.73,137.72,0.063]
[1743017966219,31.33000175,137.73,137.72,0.063]
[1743017967112,49.48140175,137.73,137.66,0.063]
[1743017967307,24.06950175,137.67,137.66,0.063]
[1743017970026,31.33320175,137.67,137.66,0.063]
[1743017971834,24.06950175,137.67,137.66,0.063]
[1743017972538,24.06950175,137.69,137.66,0.063]
[1743017972837,24.06950175,137.69,137.66,7.3272]
[1743017973219,24.06950175,137.7,137.66,7.3272]
[1743017973420,24.06950175,137.68,137.66,0.063]
[1743017974022,0.03,137.74,137.68,18.79181043]
[1743017974224,0.03,137.74,137.71,20.0]
[1743017974528,24.09950175,137.74,137.72,20.0]
[1743017974745,24.06950175,137.73,137.68,24.06950175]
[1743017974929,24.06950175,137.72,137.67,32.28940175]
[1743017975741,24.06950175,137.72,137.67,8.2199]
[1743017975742,24.06950175,137.71,137.67,8.2199]
[1743017976043,24.06950175,137.7,137.67,6.5894]
[1743017976234,24.06950175,137.68,137.67,20.0]
[1743017976418,24.06950175,137.68,137.66,0.063]
[1743017976617,24.06950175,137.67,137.66,0.063]
[1743017976915,24.06950175,137.68,137.66,0.063]
[1743017978042,24.06950175,137.67,137.66,0.063]
[1743017978621,24.06950175,137.69,137.66,0.063]
[1743017979016,106.06950175,137.7,137.66,0.063]
[1743017979838,82.0,137.7,137.66,7.3272]
[1743017980141,106.06950175,137.7,137.66,7.3272]
[1743017980646,24.06950175,137.69,137.66,7.3272]
[1743017980839,24.06950175,137.68,137.66,0.063]
[1743017981348,24.06950175,137.69,137.66,0.063]
[1743017982038,24.06950175,137.68,137.66,0.063]
[1743017982440,24.06950175,137.69,137.66,0.063]
[1743017983442,24.06950175,137.67,137.66,0.063]
[1743017985144,6.58,137.68,137.66,0.063]
[1743017985352,24.06950175,137.67,137.66,0.063]
[1743017995252,88.58,137.68,137.66,0.063]
[1743017995460,112.64950175,137.68,137.66,0.063]
[1743017995634,24.06950175,137.67,137.66,0.063]
[1743017997061,24.06950175,137.67,137.62,30.79880175]
[1743017997235,82.0,137.68,137.65,24.06950175]
[1743017997635,82.0,137.68,137.64,24.06950175]
[1743017998567,106.06950175,137.68,137.64,7.2653]
[1743017998935,106.06950175,137.68,137.64,31.33480175]
[1743017999145,82.0,137.68,137.64,31.33480175]
[1743017999459,106.06950175,137.68,137.64,31.33480175]
[1743018000440,82.0,137.68,137.64,31.33480175]
[1743018001560,106.06950175,137.68,137.64,7.2653]
[1743018001753,82.0,137.68,137.64,31.33480175]
[1743018002859,82.0,137.68,137.64,22.65790983]
[1743018007660,97.39260983,137.68,137.64,22.65790983]
[1743018007959,97.39260983,137.68,137.64,7.2653]
[1743018009653,97.39260983,137.68,137.64,22.65790983]
[1743018010264,82.0,137.68,137.64,7.2653]
[1743018010472,15.39260983,137.66,137.63,0.063]
[1743018010766,15.39260983,137.67,137.63,0.063]
[1743018011071,97.39260983,137.68,137.63,7.3287]
[1743018011241,97.39260983,137.68,137.63,22.72130983]
[1743018011742,97.39260983,137.68,137.63,7.3287]
[1743018012272,97.39260983,137.68,137.63,22.72130983]
[1743018013470,97.39260983,137.68,137.63,7.3287]
[1743018014273,97.39260983,137.68,137.63,22.72130983]
[1743018014974,82.0,137.68,137.66,15.39260983]
[1743018015283,82.03,137.72,137.67,35.39260983]
[1743018015568,97.42260983,137.72,137.68,7.2632]
[1743018015871,82.03,137.72,137.68,22.65580983]
[1743018017273,97.42260983,137.72,137.68,7.2632]
[1743018019151,82.03,137.72,137.69,15.39260983]
[1743018019660,82.03,137.72,137.69,22.65510983]
[1743018021656,82.03,137.72,137.7,15.39260983]
[1743018021860,0.03,137.72,137.7,22.65430983]
[1743018022271,0.03,137.72,137.7,7.2617]
[1743018023549,0.03,137.72,137.69,22.65500983]
[1743018025179,15.39260983,137.71,137.67,0.14216157]
[1743018025473,15.39260983,137.71,137.69,20.0]
[1743018029556,15.39260983,137.7,137.66,0.063]
[1743018029757,15.39260983,137.68,137.66,0.063]
[1743018030064,15.39260983,137.67,137.66,0.063]
[1743018030264,15.39260983,137.67,137.63,0.063]
[1743018030265,21.97260983,137.67,137.63,0.063]
[1743018030586,15.39260983,137.64,137.63,0.063]
[1743018031086,76.96304915,137.64,137.61,0.063]
[1743018031270,22.65890983,137.62,137.6,0.063]
[1743018031468,103.97260983,137.61,137.6,0.063]
[1743018033079,112.66331003,137.61,137.6,0.063]
[1743018034387,30.66331003,137.61,137.6,0.063]
[1743018034563,37.93021003,137.61,137.6,0.063]
[1743018034759,30.66331003,137.61,137.6,0.063]
[1743018036880,37.93021003,137.61,137.6,0.063]
[1743018037384,0.14216157,137.6,137.59,0.063]
[1743018037559,124.87512046,137.6,137.59,0.063]
[1743018038455,124.73295889,137.6,137.59,0.063]
[1743018038650,106.08331003,137.6,137.59,0.063]
[1743018041555,82.0,137.6,137.59,0.063]
[1743018042164,82.0,137.64,137.59,0.063]
[1743018042368,106.08331003,137.64,137.59,24.14631003]
[1743018042782,106.08331003,137.64,137.6,7.2674]
[1743018044272,24.08331003,137.62,137.59,0.063]
[1743018044677,24.08331003,137.61,137.59,0.063]
[1743018044983,89.2653,137.64,137.59,0.063]
[1743018044984,24.08331003,137.6,137.59,0.063]
[1743018045190,24.08331003,137.61,137.59,0.063]
[1743018046068,24.08331003,137.63,137.59,0.063]
[1743018046871,106.08331003,137.64,137.6,7.2674]
[1743018047493,113.34861003,137.64,137.59,7.3307]
[1743018047681,24.08331003,137.63,137.59,7.3307]
[1743018048069,24.08331003,137.62,137.59,7.3307]
[1743018048282,24.08331003,137.62,137.59,0.063]
[1743018048492,24.08331003,137.61,137.59,0.063]
[1743018049694,24.08331003,137.62,137.59,0.063]
[1743018051191,31.34971003,137.62,137.59,0.063]
[1743018051800,24.08331003,137.61,137.59,0.063]
[1743018052998,106.08331003,137.62,137.59,0.063]
[1743018053193,24.08331003,137.6,137.59,0.063]
[1743018053804,106.08331003,137.62,137.59,0.063]
[1743018054870,113.34971003,137.62,137.59,0.063]
[1743018055202,24.08331003,137.61,137.59,0.063]
[1743018056896,31.35031003,137.61,137.59,0.063]
[1743018057303,24.08331003,137.61,137.59,0.063]
[1743018057800,31.35031003,137.61,137.59,0.063]
[1743018057974,24.08331003,137.6,137.59,0.063]
[1743018058174,106.08331003,137.6,137.59,0.063]
[1743018058495,113.35071003,137.6,137.59,0.063]
[1743018060101,82.0,137.6,137.59,0.063]
[1743018060894,113.35071003,137.6,137.59,0.063]
[1743018061098,82.0,137.6,137.59,0.063]
[1743018062206,6.58,137.61,137.59,0.063]
[1743018062504,0.03,137.63,137.59,24.14631003]
[1743018062797,0.03,137.63,137.59,0.063]
[1743018063003,31.37921003,137.63,137.59,0.063]
[1743018063180,24.08331003,137.61,137.59,0.063]
[1743018064096,31.37921003,137.63,137.59,0.063]
[1743018064499,31.37921003,137.63,137.59,7.3309]
[1743018064996,24.11331003,137.63,137.59,7.3309]
[1743018065675,31.37921003,137.63,137.59,0.063]
[1743018066112,24.08331003,137.62,137.59,0.063]
[1743018067987,24.11331003,137.63,137.59,0.063]
[1743018068185,31.37931003,137.63,137.59,0.063]
[1743018068618,31.37931003,137.63,137.59,7.3309]
[1743018070219,0.03,137.63,137.59,37.75001003]
[1743018070514,0.03,137.63,137.62,24.08331003]
[1743018071092,0.03,137.63,137.61,24.08331003]
[1743018072121,0.03,137.63,137.62,7.2663]
[1743018073405,0.03,137.63,137.62,31.34961003]
[1743018073815,0.03,137.63,137.62,31.4917716]
[1743018078995,82.03,137.72,137.67,20.0]
[1743018079201,0.03,137.72,137.7,24.08331003]
[1743018080420,0.03,137.72,137.7,22.08331003]
[1743018081217,0.03,137.72,137.7,29.34501003]
[1743018082622,0.03,137.72,137.71,24.08331003]
[1743018084433,0.03,137.72,137.71,31.34491003]
[1743018087219,0.03,137.72,137.71,31.4870716]
[1743018087924,0.03,137.72,137.71,50.27888203]
[1743018088117,0.03,137.74,137.73,44.08331003]
[1743018088720,0.03,137.74,137.73,51.34381003]
[1743018089326,0.03,137.74,137.72,31.34411003]
[1743018089531,0.03,137.74,137.71,7.2613]
[1743018089718,0.03,137.74,137.71,31.34461003]
[1743018089914,0.03,137.74,137.72,24.08331003]
[1743018090522,0.03,137.74,137.73,24.08331003]
[1743018090836,0.03,137.74,137.73,31.34381003]
[1743018093022,0.03,137.74,137.73,31.4859716]
[1743018093229,0.03,137.74,137.73,50.27778203]
[1743018094511,0.03,137.74,137.72,8.7891]
[1743018094725,0.03,137.74,137.72,32.87241003]
[1743018096015,0.03,137.74,137.72,25.61161003]
[1743018096428,0.03,137.74,137.72,24.14631003]
[1743018096729,0.03,137.74,137.72,0.063]
[1743018097430,0.03,137.74,137.72,24.14631003]
[1743018098031,0.03,137.74,137.73,44.08331003]
[1743018102035,0.03,137.74,137.73,51.34381003]
[1743018102548,0.03,137.82,137.81,38.933972]
[1743018102839,0.03,137.84,137.82,0.14216157]
[1743018103027,0.03,137.84,137.83,24.08331003]
[1743018104322,0.03,137.84,137.83,31.33861003]
[1743018104633,0.03,137.84,137.83,24.08331003]
[1743018105032,0.03,137.84,137.83,31.33861003]
[1743018105232,0.03,137.84,137.83,24.08331003]
[1743018105819,0.03,137.84,137.83,31.33861003]
[1743018106128,0.03,137.84,137.83,24.08331003]
[1743018106450,0.03,137.84,137.83,31.33861003]
[1743018106823,0.03,137.84,137.83,24.08331003]
[1743018108050,0.03,137.84,137.83,31.33861003]
[1743018108225,0.03,137.84,137.83,24.08331003]
[1743018108747,0.03,137.84,137.83,31.33861003]
[1743018108942,0.03,137.84,137.83,24.08331003]
[1743018109143,0.03,137.84,137.83,31.33861003]
[1743018109526,0.03,137.84,137.83,24.08331003]
[1743018110452,0.03,137.84,137.83,31.33861003]
[1743018110624,0.03,137.84,137.83,24.08331003]
[1743018111044,0.03,137.84,137.83,31.33861003]
[1743018111249,0.03,137.84,137.83,7.2553]
[1743018112850,0.03,137.84,137.83,31.33861003]
[1743018113942,0.03,137.84,137.83,7.2553]
[1743018114352,0.03,137.84,137.83,31.33861003]
[1743018114654,0.03,137.84,137.83,56.91068203]
[1743018114843,0.03,137.84,137.83,37.97671003]
[1743018116529,0.03,137.84,137.83,56.76852046]
[1743018116943,0.03,137.84,137.83,48.03153852]
[1743018117854,0.03,137.84,137.83,32.68521043]
[1743018118154,0.03,137.84,137.83,22.74378966]
[1743018118946,0.03,137.84,137.83,31.38220441]
[1743018120452,0.03,137.84,137.83,0.063]
[1743018123159,0.03,137.84,137.83,24.04774284]
[1743018123458,0.03,137.84,137.83,0.063]
[1743018124126,24.01474284,137.84,137.83,0.063]
[1743018124330,24.06224544,137.84,137.83,0.063]
[1743018124549,0.0775026,137.84,137.83,0.063]
[1743018125349,0.0775026,137.84,137.83,24.04774284]
[1743018126135,0.0775026,137.84,137.83,31.30304284]
[1743018127350,0.0775026,137.84,137.83,0.063]
[1743018128143,0.0775026,137.84,137.83,20.063]
[1743018128954,0.0775026,137.84,137.83,0.063]
[1743018131939,24.06224544,137.84,137.83,0.063]
[1743018132450,31.31694544,137.84,137.83,0.063]
[1743018133040,0.0775026,137.84,137.83,0.063]
[1743018134854,24.06224544,137.84,137.83,0.063]
[1743018136645,31.31694544,137.84,137.83,0.063]
[1743018137364,24.06224544,137.84,137.83,0.063]
[1743018137741,0.0775026,137.84,137.83,0.063]
[1743018138762,54.60698828,137.84,137.83,0.063]
[1743018138963,54.60698828,137.84,137.76,6.4985]
[1743018138964,15.37489879,137.77,137.75,7.2592]